[Event "CCT Julius Baer-D3 2024"]
[Site "Online"]
[Date "2024.09.27"]
[Round "2"]
[White "Moussard, Jules"]
[Black "Svane, Rasmus"]
[Result "1-0"]
[ECO "C54"]
[WhiteElo "2600"]
[BlackElo "2629"]
[Annotator "TA"]
[PlyCount "77"]
[EventDate "2024.09.25"]
[EventType "swiss"]
[EventCountry "NET"]
[SourceTitle "playchess.com"]
[Source "ChessBase"]
[SourceQuality "1"]
[TimeControl "600+2"]

{[%evp 13,77,15,25,8,31,0,0,5,3,0,-14,-22,-4,0,12,-70,11,-19,-31,0,45,33,46,19,29,-8,0,-14,39,30,30,-22,123,87,95,102,79,77,300,301,433,462,455,456,496,371,862,851,1079,1080,1018,1018,1139,1120,1165,1136,1362,1027,1555,1220,1672,1483,1407,1644,1701,1591]} 1. e4 {[%emt 0:00:02]} e5 {[%emt 0:00:03]} 2. Nf3 {[%emt 0:00:02]} Nc6 {[%emt 0:00:01]} 3. Bc4 {[%emt 0:00:01]} Bc5 {[%emt 0:00:03]} 4. c3 {[%emt 0:00:01]} Nf6 {[%emt 0:00:02]} 5. d3 {[%emt 0:00:01]} d6 {[%emt 0:00:01]} 6. Bg5 {[%emt 0:00:01]} h6 {[%emt 0:00:24]} 7. Bh4 {[%emt 0:00:01]} a6 {[%emt 0:00:43]} 8. a4 {[%emt 0:00:05] C54: Giuoco Piano: 4 c3 Nf6, main lines with 5 d4 and 5 d3.} Ba7 {[%emt 0:00:04]} 9. Nbd2 {[%emt 0:00:07]} Qe7 {[%emt 0:00:07] The main line 9...Qe7 scores better than 9...g5.} 10. O-O {[%emt 0:00:08]} g5 {[%emt 0:00:56]} 11. Bg3 {[%emt 0:00:01]} Nd7 {[%emt 0:00:01]} 12. b4 {[%emt 0:00:02][%cal Bb2b4,Bb4b5,Bb5b6][%mdl 32]} Nf8 {[%emt 0:00:04]} 13. b5 {[%emt 0:00:01]} Na5 {[%emt 0:00:04]} 14. Bd5 {[%emt 0:00:01]} (14. bxa6 $11 bxa6 15. d4) 14... c6 {[%emt 0:00:14]} (14... Ng6 $1 $15 15. h3 c6) 15. Ba2 {[%emt 0:00:07]} (15. bxc6 {with more complications.} bxc6 16. Nc4 cxd5 17. Nxd6+ Qxd6 18. Bxe5 Qg6 19. Bxh8 dxe4 20. Ne5) 15... Ng6 {[%emt 0:00:06]} 16. Qb1 $5 $146 {[%emt 0:00:11][%mdl 8] New and interesting.} ({Predecessor:} 16. Kh1 h5 17. h4 gxh4 18. Bh2 Bb6 19. Qb1 Rb8 20. d4 h3 21. g3 O-O 22. Nh4 {1-0 Pichot,A (2635)-Amin,B (2682) FRA-chT Top 16 GpA 2024 (2.1)}) 16... h5 {[%emt 0:00:35]} 17. b6 {[%emt 0:00:07]} Bb8 $1 {[%emt 0:00:12]} 18. Qb4 $36 {[%emt 0:00:01][%mdl 2048] White has good play.} g4 $1 {[%emt 0:00:32]} 19. Ne1 {[%emt 0:00:07][%cal Of2f3] Strongly threatening f3!} (19. Qxa5 gxf3 20. Nxf3 Bg4 $17 (20... h4 21. d4 $15)) (19. Nh4 $5 Nxh4 20. Bxh4 (20. Qxa5 Ng6 $11) 20... Qxh4 21. Qxa5 $11) 19... h4 {[%emt 0:00:03][%cal Oe7g5] Hoping for ...Qg5!} 20. Qxa5 {[%emt 0:00:05][%cal Oe1c2]} f5 {[%emt 0:01:26]} (20... Qg5 $11 21. Rd1 (21. f4 Qh6 $15) 21... Qh5) 21. exf5 {[%emt 0:02:00]} Bxf5 {[%emt 0:00:04][%cal Od6d5] [#]} 22. d4 {[%emt 0:00:01]} (22. Qb4 $142 $1) 22... hxg3 {[%emt 0:00:21]} (22... Qg5 $1 $11 {remains equal.} 23. dxe5 (23. f4 Qh6 $15) 23... d5 (23... hxg3 24. exd6 Qh6 25. Bf7+ Kd8 26. fxg3 $18)) 23. fxg3 $16 {[%emt 0:00:03]} Qg5 {[%emt 0:00:21] [#] And now ...Qe3+ would win.} 24. Rf2 $1 {[%emt 0:01:03]} d5 {[%emt 0:00:36] [#]} 25. Bxd5 $1 {[%emt 0:00:08]} cxd5 $2 {[%emt 0:00:04]} (25... Qh5 $16) 26. Qxd5 $18 {[%emt 0:00:01]} Ne7 {[%emt 0:01:05]} ({Reject} 26... Qh5 27. Qxb7 Qxh2+ 28. Kf1 $18) (26... Qe3 {is a better defense.}) 27. Qxb7 {[%emt 0:00:10]} Qh6 {[%emt 0:00:43]} 28. Nf1 {[%emt 0:00:52]} ({Resist} 28. Qxa8 Qxh2+ 29. Kf1 O-O $18) 28... O-O {[%emt 0:01:19] aiming for ...Bd6.} 29. Qxa8 {[%emt 0:00:18]} exd4 $2 {[%emt 0:00:08]} (29... Qxb6 30. a5 Qa7 31. Qxa7 Bxa7) 30. Qxa6 {[%emt 0:00:07]} Be5 {[%emt 0:00:10]} 31. cxd4 {[%emt 0:00:05][%cal Bc3d4,Bd4d5][%mdl 32]} Bg7 {[%emt 0:00:01]} 32. Qc4+ {[%emt 0:00:15]} Kh7 {[%emt 0:00:08]} 33. a5 {[%emt 0:00:21]} Qd6 {[%emt 0:00:02]} 34. Rd1 {[%emt 0:00:05]} Nc6 {[%emt 0:00:05]} 35. Qc5 {[%emt 0:00:02]} Qd7 {[%emt 0:00:08]} 36. d5 {[%emt 0:00:31]} Ne5 {[%emt 0:00:01]} 37. Ne3 {[%emt 0:00:01]} Rc8 {[%emt 0:00:02]} 38. Qb4 {[%emt 0:00:07]} Bg6 {[%emt 0:00:02]} 39. b7 {[%emt 0:00:03]} 1-0

[Event "CCT Julius Baer-D3 2024"]
[Site "Online"]
[Date "2024.09.27"]
[Round "2"]
[White "Bharath Subramaniyam H"]
[Black "Navara, David"]
[Result "1-0"]
[ECO "C54"]
[WhiteElo "2561"]
[BlackElo "2681"]
[Annotator "TA"]
[PlyCount "159"]
[EventDate "2024.09.25"]
[EventType "swiss"]
[EventCountry "NET"]
[SourceTitle "playchess.com"]
[Source "ChessBase"]
[SourceQuality "1"]
[TimeControl "600+2"]

{[%evp 95,159,-12,0,0,0,0,0,0,0,0,0,0,0,0,0,0,0,0,0,0,8,8,8,-29987,8,8,8,8,73,73,73,73,73,73,73,73,73,73,73,73,74,73,74,74,74,74,74,74,74,74,74,74,74,74,87,87,87,87,87,80,80,80,87,87,87,87]} 1. e4 {[%emt 0:00:04]} e5 {[%emt 0:03:05]} 2. Nf3 {[%emt 0:00:04]} Nc6 {[%emt 0:00:02]} 3. Bc4 {[%emt 0:00:09]} Bc5 {[%emt 0:00:04]} 4. d3 {[%emt 0:00:03]} Nf6 {[%emt 0:00:02]} 5. O-O {[%emt 0:00:02]} O-O {[%emt 0:00:04]} 6. h3 {[%emt 0:00:02]} h6 {[%emt 0:00:03]} 7. Re1 {[%emt 0:00:04]} d6 {[%emt 0:00:03]} 8. c3 {[%emt 0:00:03]} a5 {[%emt 0:00:02]} 9. Bb3 {[%emt 0:00:21]} b5 {[%emt 0:00:04]} 10. d4 {[%emt 0:00:19]} Bb6 {[%emt 0:00:03]} 11. Be3 {[%emt 0:00:02]} a4 {[%emt 0:00:10]} 12. Bc2 {[%emt 0:00:03]} exd4 {[%emt 0:00:03]} 13. Nxd4 {[%emt 0:00:03]} Nxd4 {[%emt 0:00:05]} 14. cxd4 {[%emt 0:00:02]} Bb7 {[%emt 0:00:17]} 15. Nc3 {[%emt 0:00:03]} Ba5 {[%emt 0:00:14]} 16. Bd2 {[%emt 0:00:03]} Re8 {[%emt 0:00:04]} 17. f3 {[%emt 0:00:11]} Bb6 {[%emt 0:00:37]} 18. Be3 {[%emt 0:00:20]} Qd7 {[%emt 0:00:25]} 19. Qd2 {[%emt 0:00:20]} b4 {[%emt 0:00:12]} 20. Ne2 {[%emt 0:00:07]} c5 {[%emt 0:00:12]} 21. Red1 {[%emt 0:01:11]} Qe7 {[%emt 0:00:41]} 22. Ng3 {[%emt 0:00:09]} cxd4 {[%emt 0:00:05]} 23. Bf2 {[%emt 0:00:43]} d5 {[%emt 0:00:11]} 24. Nf5 {[%emt 0:00:07]} Qf8 {[%emt 0:00:03]} 25. exd5 {[%emt 0:01:20]} Nxd5 {[%emt 0:00:13]} 26. Qd3 {[%emt 0:00:08]} g6 {[%emt 0:00:06]} 27. Nxd4 {[%emt 0:00:10]} Nf4 {[%emt 0:00:10]} 28. Qb5 {[%emt 0:00:04]} Bxd4 {[%emt 0:00:04]} 29. Bxd4 {[%emt 0:00:02]} Re2 {[%emt 0:00:14]} 30. Bf2 {[%emt 0:00:21]} Bxf3 {[%emt 0:00:25]} 31. Bd3 {[%emt 0:00:10]} Rxb2 {[%emt 0:00:11]} 32. Qe5 {[%emt 0:00:26]} Rxf2 {[%emt 0:00:44]} 33. Kxf2 {[%emt 0:00:02]} Bxd1 {[%emt 0:00:03]} 34. Qxf4 {[%emt 0:00:03]} Qc5+ {[%emt 0:00:03]} 35. Qe3 {[%emt 0:00:07]} Qh5 {[%emt 0:00:14]} 36. g4 {[%emt 0:00:41]} Qh4+ {[%emt 0:00:20]} 37. Kg2 {[%emt 0:00:13]} Bxg4 {[%emt 0:00:03]} 38. hxg4 {[%emt 0:00:03]} Qxg4+ {[%emt 0:00:02]} 39. Qg3 {[%emt 0:00:11]} Qxg3+ {[%emt 0:00:03]} 40. Kxg3 {[%emt 0:00:02]} Rc8 {[%emt 0:00:03]} 41. Bb5 {[%emt 0:00:07]} Rc3+ {[%emt 0:00:05]} 42. Kf4 {[%emt 0:00:14]} b3 {[%emt 0:00:08]} 43. axb3 {[%emt 0:00:02]} axb3 {[%emt 0:00:02]} 44. Rb1 {[%emt 0:00:03]} Kg7 {[%emt 0:00:05]} 45. Ke4 {[%emt 0:00:02]} h5 {[%emt 0:00:06]} 46. Kd4 {[%emt 0:00:03]} Rg3 {[%emt 0:00:03]} 47. Bc4 {[%emt 0:00:02]} h4 {[%emt 0:00:03]} 48. Bxb3 {[%emt 0:00:03]} h3 {[%emt 0:00:03]} 49. Bd5 {[%emt 0:00:03]} f5 {[%emt 0:00:07]} 50. Ke5 {[%emt 0:00:07]} h2 {[%emt 0:00:08]} 51. Rb7+ {[%emt 0:00:41]} Kh6 {[%emt 0:00:03]} 52. Kf6 {[%emt 0:00:03]} Rd3 {[%emt 0:00:08]} 53. Rb2 {[%emt 0:00:09]} Rh3 {[%emt 0:00:10]} ({And not} 53... Rxd5 54. Rxh2#) 54. Bh1 {[%emt 0:00:05]} Kh5 {[%emt 0:00:04]} 55. Rg2 {[%emt 0:00:04]} f4 {[%emt 0:00:08]} 56. Rg5+ $1 {[%emt 0:00:07]} Kh4 {[%emt 0:00:03]} 57. Rxg6 {[%emt 0:00:06]} f3 {[%emt 0:00:12]} 58. Kf5 {[%emt 0:00:09]} f2 {[%emt 0:00:03]} 59. Rg4+ {[%emt 0:00:03]} Kh5 {[%emt 0:00:02]} 60. Rf4 {[%emt 0:00:02]} Rg3 {[%emt 0:00:12]} 61. Rxf2 {[%emt 0:00:03]} Rg5+ {[%emt 0:00:02]} (61... Kh4 $11 {keeps the balance.}) 62. Kf4 {[%emt 0:00:03]} Rg4+ {[%emt 0:00:02]} 63. Kf3 {[%emt 0:00:06]} Kg5 {[%emt 0:00:04]} 64. Rxh2 {[%emt 0:00:05]} (64. Rb2 {is interesting.} Rh4 65. Kg3 Rh7 66. Rf2) 64... Rh4 {[%emt 0:00:05] [#]} 65. Rg2+ $1 {[%emt 0:00:02]} Kf5 {[%emt 0:00:05] [#]} 66. Rg1 $1 {[%emt 0:00:03]} Rh3+ {[%emt 0:00:03]} 67. Ke2 {[%emt 0:00:11]} Rh4 {[%emt 0:00:02]} 68. Bf3 {[%emt 0:00:05]} Rf4 {[%emt 0:00:02]} 69. Ke3 {[%emt 0:00:03]} Rh4 {[%emt 0:00:02]} 70. Ra1 {[%emt 0:00:03]} Ke5 {[%emt 0:00:03]} 71. Ra5+ {[%emt 0:00:03]} Kf6 {[%emt 0:00:02]} 72. Be4 {[%emt 0:00:02]} Rh2 {[%emt 0:00:04]} 73. Kf4 {[%emt 0:00:04]} Rf2+ {[%emt 0:00:03]} 74. Bf3 {[%emt 0:00:02]} Rb2 {[%emt 0:00:02]} 75. Ra6+ {[%emt 0:00:03]} Ke7 {[%emt 0:00:02]} 76. Ke5 {[%emt 0:00:02]} Rd2 {[%emt 0:00:06]} 77. Bd5 {[%emt 0:00:03]} Re2+ {[%emt 0:00:03]} 78. Be4 {[%emt 0:00:03]} Re1 {[%emt 0:00:02]} 79. Ra7+ {[%emt 0:00:03]} Ke8 {[%emt 0:00:02]} 80. Kd5 {[%emt 0:00:02]} 1-0

[Event "CCT Julius Baer-D3 2024"]
[Site "Online"]
[Date "2024.09.27"]
[Round "2"]
[White "Makarian, Rudik"]
[Black "Theodorou, Nikolas"]
[Result "1/2-1/2"]
[ECO "E16"]
[WhiteElo "2550"]
[BlackElo "2619"]
[Annotator "TA"]
[PlyCount "59"]
[EventDate "2024.09.25"]
[EventType "swiss"]
[EventCountry "NET"]
[SourceTitle "playchess.com"]
[Source "ChessBase"]
[SourceQuality "1"]
[TimeControl "600+2"]

{[%evp 15,59,33,35,24,29,20,18,25,52,49,59,46,72,20,27,41,50,44,49,46,51,45,45,28,39,42,30,0,7,0,0,0,0,0,0,0,6,0,0,0,0,-35,-28,-21,0,0]} 1. d4 {[%emt 0:00:02]} Nf6 {[%emt 0:00:03]} 2. c4 {[%emt 0:00:01]} e6 {[%emt 0:00:02]} 3. Nf3 {[%emt 0:00:01]} Bb4+ {[%emt 0:00:03]} 4. Bd2 {[%emt 0:00:01]} Qe7 {[%emt 0:00:02]} 5. g3 {[%emt 0:00:02]} Bxd2+ {[%emt 0:00:22]} 6. Qxd2 {[%emt 0:00:01]} b6 {[%emt 0:00:01]} 7. Bg2 {[%emt 0:00:02]} Bb7 {[%emt 0:00:00]} 8. O-O {[%emt 0:00:01]} O-O {[%emt 0:00:05]} 9. Rd1 {[%emt 0:00:02]} d6 {[%emt 0:00:11]} 10. Qd3 {[%emt 0:00:11]} Nbd7 {[%emt 0:00:11][%cal Bb8d7,Bd7c5,Bc5e6][%mdl 32]} 11. Nc3 {[%emt 0:00:02]} Rfe8 {[%emt 0:00:00]} 12. e4 {[%emt 0:00:01]} e5 {[%emt 0:00:12]} 13. Re1 {[%emt 0:00:15]} c5 {[%emt 0:00:16]} 14. dxc5 {[%emt 0:00:38]} ({White should try} 14. d5 $16) 14... Nxc5 $11 {[%emt 0:00:05]} 15. Qc2 {[%emt 0:00:04]} Rac8 {[%emt 0:00:01][%cal Ob6b5]} 16. Rad1 {[%emt 0:00:09]} g6 {[%emt 0:00:17]} 17. Bh3 {[%emt 0:00:33]} Rcd8 {[%emt 0:00:10]} 18. b4 {[%emt 0:00:06]} Ne6 {[%emt 0:00:02]} 19. Nd5 {[%emt 0:00:03]} Nxd5 {[%emt 0:00:04]} 20. cxd5 {[%emt 0:00:03]} Ng7 {[%emt 0:00:10]} 21. Re3 {[%emt 0:00:56]} Bc8 {[%emt 0:00:15]} 22. Bxc8 {[%emt 0:00:18]} Rxc8 {[%emt 0:00:00]} 23. Rc3 {[%emt 0:00:52]} Rxc3 {[%emt 0:00:03]} 24. Qxc3 {[%emt 0:00:00]} f5 {[%emt 0:00:00]} 25. Nd2 {[%emt 0:00:03]} Rf8 {[%emt 0:00:13]} 26. Kg2 {[%emt 0:00:54]} Nh5 {[%emt 0:00:48]} 27. exf5 {[%emt 0:01:06]} gxf5 {[%emt 0:00:00]} 28. Nf3 {[%emt 0:00:15]} Qg7 {[%emt 0:00:34]} 29. h3 {[%emt 0:00:15]} Nf6 {[%emt 0:00:26]} 30. Nh4 {[%emt 0:00:16] Weighted Error Value: White=0.10 (very precise) /Black=0.06 (flawless) .  Mistake:       	White=1     	---        Inaccurate:     	White=1     	Black=2      OK:         	White=9     	Black=7} 1/2-1/2

[Event "CCT Julius Baer-D3 2024"]
[Site "Online"]
[Date "2024.09.27"]
[Round "2.1"]
[White "Niemann, Hans Moke"]
[Black "Yoo, Christopher Woojin"]
[Result "1/2-1/2"]
[ECO "C42"]
[WhiteElo "2733"]
[BlackElo "2603"]
[Annotator "TA"]
[PlyCount "127"]
[EventDate "2024.09.25"]
[EventType "swiss"]
[EventCountry "NET"]
[SourceTitle "playchess.com"]
[Source "ChessBase"]
[SourceQuality "1"]
[TimeControl "600+2"]

{[%evp 54,127,88,78,123,129,169,170,167,167,140,142,206,198,179,162,177,164,170,163,163,164,191,199,190,191,268,273,326,234,223,226,233,8,8,8,8,0,0,0,0,-8,-8,-8,-8,-8,-8,-41,-8,-44,-50,-99,-8,-27,0,-1,0,-17,-16,-19,-19,-73,-8,-24,-8,-8,0,0,0,0,0,0,0,0,0,0]} 1. e4 {[%emt 0:00:02]} e5 {[%emt 0:00:06]} 2. Nf3 {[%emt 0:00:02]} Nf6 {[%emt 0:00:01]} 3. Nxe5 {[%emt 0:00:19]} d6 {[%emt 0:00:02]} 4. Nf3 {[%emt 0:00:01]} Nxe4 {[%emt 0:00:01]} 5. Qe2 {[%emt 0:00:00]} Qe7 {[%emt 0:00:04]} 6. g3 {[%emt 0:00:01] C42: Petroff Defence: 3 Nxe5 and unusual White 3rd moves.} Nf6 {[%emt 0:00:24]} 7. Bg2 {[%emt 0:00:06]} Qxe2+ {[%emt 0:00:08]} 8. Kxe2 {[%emt 0:00:00]} Be7 {[%emt 0:00:38]} 9. Re1 {[%emt 0:00:02]} O-O {[%emt 0:00:01]} 10. Kf1 {[%emt 0:00:01]} Bd8 $146 {[%emt 0:00:17]} ({Predecessor:} 10... Re8 11. b4 Na6 12. a3 c6 13. Bb2 Nc7 14. Nc3 Bd7 15. d3 Bf8 16. Ne2 Nh5 {½-½ Subelj,J (2512)-Indjic,A (2589) EU-ch Rapid Zagreb 2023 (4)}) 11. d3 {[%emt 0:00:07]} d5 {[%emt 0:01:00]} 12. Nc3 {[%emt 0:00:03]} c6 {[%emt 0:00:16]} 13. Bf4 {[%emt 0:00:02]} Bg4 {[%emt 0:00:42]} 14. Nd4 {[%emt 0:00:41]} Bb6 {[%emt 0:00:06]} 15. Nb3 {[%emt 0:00:01]} Nbd7 {[%emt 0:00:11]} 16. Na4 {[%emt 0:00:06]} Rfe8 {[%emt 0:01:26]} 17. Nxb6 {[%emt 0:00:16]} axb6 {[%emt 0:00:01]} 18. h3 {[%emt 0:00:01]} Rxe1+ {[%emt 0:00:08]} 19. Kxe1 {[%emt 0:00:02]} Be6 {[%emt 0:00:04]} 20. Nd4 {[%emt 0:00:06]} Nc5 {[%emt 0:00:12]} 21. Kd2 {[%emt 0:00:23]} b5 {[%emt 0:00:08]} 22. Bd6 {[%emt 0:00:11]} Ncd7 {[%emt 0:00:20]} 23. f4 {[%emt 0:00:06]} Ne8 {[%emt 0:00:12]} 24. Be7 {[%emt 0:00:13]} Nb6 {[%emt 0:00:31]} 25. f5 {[%emt 0:00:06]} Nc8 {[%emt 0:00:06]} 26. Bg5 {[%emt 0:00:44]} Bd7 {[%emt 0:00:02]} 27. g4 {[%emt 0:00:01]} Ncd6 {[%emt 0:00:05]} 28. a3 {[%emt 0:00:13]} b4 {[%emt 0:00:16]} 29. a4 $1 {[%emt 0:00:10]} b6 {[%emt 0:00:17] [#]} 30. b3 $1 {[%emt 0:00:06]} f6 {[%emt 0:00:32]} 31. Bf4 {[%emt 0:00:17]} Kf7 {[%emt 0:00:04]} 32. Re1 {[%emt 0:00:04]} g6 {[%emt 0:00:11]} (32... Nc8 $16 {was worth a try.} 33. Kc1 g6) 33. fxg6+ $18 {[%emt 0:00:02]} hxg6 {[%emt 0:00:00]} 34. Kc1 {[%emt 0:00:15]} g5 {[%emt 0:00:10]} 35. Bd2 {[%emt 0:00:01]} Nc7 {[%emt 0:01:13]} 36. Bxb4 {[%emt 0:00:02]} c5 {[%emt 0:00:01]} 37. Ba3 {[%emt 0:00:00]} Re8 {[%emt 0:00:19]} 38. Rxe8 {[%emt 0:00:05]} Ndxe8 {[%emt 0:00:21]} 39. Ne2 {[%emt 0:00:17]} Bc6 {[%emt 0:00:18]} (39... Ke6 $142 40. a5 bxa5 41. Bxc5 a4 42. Nd4+ Ke5 43. bxa4 Bxa4 44. Nf3+ Ke6) 40. d4 {[%emt 0:00:02]} Ne6 {[%emt 0:00:10]} 41. a5 {[%emt 0:00:17]} bxa5 {[%emt 0:00:02]} 42. Bxc5 {[%emt 0:00:01]} (42. dxc5 N8c7 43. Kb2 Ke7 $11) 42... N8c7 {[%emt 0:00:04]} 43. Nc3 $2 {[%emt 0:00:01]} (43. c4 $18) 43... Nxc5 $11 {[%emt 0:00:04]} 44. dxc5 {[%emt 0:00:01]} Ke6 {[%emt 0:00:01]} 45. Bf1 {[%emt 0:00:34]} Ke5 {[%emt 0:00:02]} 46. Na2 {[%emt 0:00:01]} Kd4 {[%emt 0:00:03]} 47. c3+ {[%emt 0:00:14]} Kxc5 {[%emt 0:00:02]} 48. Kd2 {[%emt 0:00:01]} Ne6 {[%emt 0:00:02]} 49. Nc1 {[%emt 0:00:02]} Kd6 {[%emt 0:00:03]} 50. Ke3 {[%emt 0:00:04]} Bd7 {[%emt 0:00:03]} 51. Bd3 {[%emt 0:00:11]} Nf4 {[%emt 0:00:03]} 52. Bf1 {[%emt 0:00:00] [#]} Ng6 {[%emt 0:00:03]} (52... Be6 $1 $17) 53. Kd4 {[%emt 0:00:05]} f5 {[%emt 0:00:05]} 54. gxf5 $1 {[%emt 0:00:05]} Bxf5 {[%emt 0:00:00]} 55. c4 {[%emt 0:00:01]} dxc4 {[%emt 0:00:01]} 56. bxc4 {[%emt 0:00:00]} Nf4 {[%emt 0:00:01]} 57. c5+ {[%emt 0:00:04]} (57. Nb3 $1 $11) 57... Kc7 {[%emt 0:00:01]} (57... Kc6 $17 {[%cal Of5e6] Hoping for ...Be6!} 58. Nb3 a4 (58... Bxh3 59. Nxa5+ Kc7 60. Bxh3 $11) 59. Na5+ Kc7) 58. Bb5 {[%emt 0:00:06]} Bxh3 {[%emt 0:00:04]} 59. Nb3 {[%emt 0:00:02]} Bd7 {[%emt 0:00:07]} 60. Bxd7 {[%emt 0:00:02]} Kxd7 {[%emt 0:00:00]} 61. Nxa5 {[%emt 0:00:00]} Ne6+ {[%emt 0:00:01]} 62. Ke4 {[%emt 0:00:01]} Nxc5+ {[%emt 0:00:00]} 63. Kf5 {[%emt 0:00:01]} g4 {[%emt 0:00:00]} 64. Kxg4 {[%emt 0:00:01]} 1/2-1/2